Cogmind - Beta 15 @@@ ROGUE MODE // 2025.06.13 @ 03:47:45 Player: CL-1C0 Result: Destroyed by S-10 Pest with Light Assault Rifle Performance ------------- Evolutions (0) 0 Regions Visited (2) 400 Robots Destroyed (10) 50 Value Destroyed (367) 367 Prototype IDs (0) 0 Alien Tech Used (0) 0 Bonus (0) 0 TOTAL SCORE: 817 Bonus ------- None Cogmind --------- Core Integrity 0/250 Matter 295/300 Energy 100/100 System Corruption 0% Temperature Cool (0) Movement Flying (55) Location -10/Subcaves Parts ------- > --- POWER (1) -------- (None) > --- PROPULSION (2) --- Makeshift Flight Unit > --- UTILITY (2) ------ Subdweller Optics > --- WEAPON (2) ------- (None) > --- INVENTORY (5) ---- Subdweller Power Source Subdweller Power Source Disposable Heat Sink Peak State ------------ > --- POWER ------------ Subdweller Power Source > --- PROPULSION ------- Makeshift Leg Subdweller Monowheel > --- UTILITY ---------- Disposable Heat Sink Subdweller Optics > --- WEAPON ----------- Subdweller Beam Cannon > --- INVENTORY -------- Subdweller Power Source Subdweller Power Source Makeshift Flight Unit Disposable Heat Sink [Rating: 15] Favorites ----------- Power Subdweller Power Source Engine Subdweller Power Source Propulsion Light Treads Treads Light Treads Leg Makeshift Leg Wheel Subdweller Monowheel Flight Unit Makeshift Flight Unit Utility Subdweller Optics Device Subdweller Optics Weapon Subdweller Beam Cannon Energy Gun Subdweller Laser Energy Cannon Subdweller Beam Cannon Launcher Grenade Launcher Build | -11 -10 -10 ------- Run | Yrd Mat Sub Slots Evolved . | . . . Power . | . . . Propulsion . | . . . Utility . | . . . Weapon . | . . . Parts Attached 13 | 2 1 10 Power 2 | . . 2 Engine 2 | . . 2 Core . | . . . Reactor . | . . . Propulsion 6 | 2 . 4 Treads 2 | 2 . . Leg 1 | . . 1 Wheel 2 | . . 2 Hover . | . . . Flight 1 | . . 1 Utility 2 | . . 2 Device 2 | . . 2 Storage . | . . . Processor . | . . . Hackware . | . . . Protection . | . . . Artifact . | . . . Weapon 3 | . 1 2 Energy Gun 1 | . . 1 Energy Cannon 1 | . . 1 Ballistic Gun . | . . . Ballistic Cannon . | . . . Launcher 1 | . 1 . Special Weapon . | . . . Impact Weapon . | . . . Slashing Weapon . | . . . Piercing Weapon . | . . . Special Melee Weapon . | . . . Unidentified Prototypes . | . . . Parts Lost 8 | . . 8 Power 1 | . . 1 Propulsion 4 | . . 4 Utility 1 | . . 1 Weapon 2 | . . 2 Highest Loss Streak 5 | . . 5 To Critical Strikes . | . . . Average Backups 3 | 4 . 3 Power 1 | 1 . 1 Propulsion 1 | 2 . 1 Utility . | . . . Weapon . | 1 . . Tool/Special . | . . . Unused Backups 3 | . . 3 Power 2 | . . 2 Propulsion . | . . . Utility 1 | . . 1 Weapon . | . . . Tool/Special . | . . . Average Slot Usage (%) 76 | . 30 78 Engine 11 | . . 12 Treads 13 | . 28 13 Leg 7 | . . 7 Wheel 5 | . . 6 Device 19 | . . 19 Energy Cannon 11 | . . 11 Launcher 5 | . 2 5 Peak Build Rating 15 | 2 3 15 Average Rating 11 | 1 2 11 On Entrance 3 | 6 2 2 Naked Turns . | . . . Heaviest Build 18 | . 3 18 Greatest Support 40 | 3 3 40 Greatest Overweight (x) 4 | . . 4 Average Overweight (x) . | . . . Largest Inventory Capacity 5 | 5 5 5 Average Capacity 5 | 5 5 5 Most Carried 5 | 4 1 5 Average Carried 3 | 2 . 3 Final Capacity 5 | 5 5 5 Final Carried 3 | . 1 3 Class Distribution -------------------- 55% | Mutant 44% | Scavenger-Mutant Dominant Class ---------------- Mutant | -10/Subcaves Resources | -11 -10 -10 ----------- Run | Yrd Mat Sub Matter Collected 525 | 183 . 342 Remotely . | . . . Salvage Created 299 | . 14 285 Parts 15 | . 2 13 Haulers Intercepted . | . . . Recyclers Shooed . | . . . Parts Field Recycled . | . . . Retrieved Matter . | . . . Parts Self-Destructed 9 | . . 9 Prevented . | . . . Kills | -11 -10 -10 ------- Run | Yrd Mat Sub Combat Hostiles Destroyed 9 | . . 9 Guns 1 | . . 1 Cannons 3 | . . 3 AOE 5 | . . 5 Classes Destroyed 2 | . 1 1 Tunneler 1 | . 1 . Subdweller 9 | . . 9 Best Kill Streak 2 | . 1 2 Combat Bots Only 2 | . . 2 Max Kills in Single Turn 1 | . 1 1 Gunslinging . | . . . Exploded 1 | . . 1 Melee . | . . . Uniques/NPCs Destroyed . | . . . Combat | -11 -10 -10 -------- Run | Yrd Mat Sub Hostile Shots Fired 105 | . . 105 Missed 50 | . . 50 Hits 55 | . . 55 Projectile 55 | . . 55 Damage Taken 959 | . 12 947 Core 253 | . 8 245 Absorbed by Shields . | . . . Core Remaining (%) 100 | 100 . . Volleys Fired 45 | . 7 38 Largest 1 | . 1 1 Hottest 80 | . 30 80 Shots Fired 44 | . 7 37 Gun 7 | . . 7 Cannon 20 | . . 20 Launcher 17 | . 7 10 Special . | . . . Kinetic . | . . . Thermal 27 | . . 27 Explosive 17 | . 7 10 Electromagnetic . | . . . Robot Hit Streak 10 | . . 10 Robot Miss Streak 2 | . . 2 Penetration Max . | . . . Secondary Targets . | . . . Shots Hit Robots 27 | . . 27 Core Hits 15 | . 3 12 Critical Kills . | . . . Critical Parts Destroyed . | . . . Critical Strikes . | . . . Melee Attacks . | . . . Impact . | . . . Slashing . | . . . Piercing . | . . . Sneak Attacks . | . . . Combat Hostiles . | . . . Follow-up Attacks . | . . . Damage Inflicted 1099 | . 66 1033 Guns 144 | . . 144 Cannons 392 | . . 392 Explosions 563 | . 66 497 Melee . | . . . Ramming . | . . . Kinetic . | . . . Thermal 536 | . . 536 Explosive 563 | . 66 497 Electromagnetic . | . . . Impact . | . . . Slashing . | . . . Piercing . | . . . Highest Corruption . | . . . Average Corruption . | . . . Corruption Purged . | . . . Corruption Blocked . | . . . Overload Shots . | . . . Overflow Damage . | . . . Projectiles . | . . . Explosions . | . . . Melee . | . . . Knockbacks . | . . . Impact . | . . . Kinetic . | . . . Secondary . | . . . Self-Inflicted Damage 82 | . 13 69 Shots 5 | . 1 4 Rammed . | . . . Targets Rammed . | . . . Kicked . | . . . Crushed . | . . . Highest Temperature 1 | . . 1 Average Temperature 1 | . . 1 Received Heat Transfer 99 | . . 99 Siege Activations . | . . . Martial Activations . | . . . Shielding Activations . | . . . Robots Disrupted . | . . . Combat Hostiles . | . . . Robots Corrupted . | . . . Combat Hostiles . | . . . Parts Fried . | . . . Impact Corruptions . | . . . Robots Melted . | . . . Combat Hostiles . | . . . Parts Melted . | . . . Heat Transferred 693 | . . 693 Parts Sabotaged . | . . . Parts Stolen . | . . . Parts Stripped . | . . . Power Chain Reactions . | . . . Alert | -11 -10 -10 ------- Run | Yrd Mat Sub Maximum Alert Level . | . . . Low Security (%) 100 | 100 100 . Level 1 . | . . . Level 2 . | . . . Level 3 . | . . . Level 4 . | . . . Level 5 . | . . . High Security . | . . . Max Security . | . . . Peak Influence 9 | . 9 . Initial . | . . . Average . | . . . Influence Increases 40 | . 10 30 Destroy 0b10 Robot/NC 5 | . 5 . Destroy Structure 5 | . 5 . Lose Combat Pursuer 30 | . . 30 Influence Decreases 40 | . 9 31 Entered New Map 1 | . . 1 Time Decay 13 | . 9 4 Lost Part 26 | . . 26 Squads Dispatched . | . . . Investigation . | . . . Extermination . | . . . Reinforcement . | . . . Assault . | . . . Garrison . | . . . Intercept . | . . . Searches Triggered . | . . . Construction Impeded . | . . . Haulers Reinforced . | . . . Active Scanning Responses . | . . . Cargo Convoy Interrupts . | . . . Stealth | -11 -10 -10 --------- Run | Yrd Mat Sub Distress Signals . | . . . Communications Jammed . | . . . Distress Signals . | . . . Times Spotted 16 | . . 16 Peak Tracking Total 6 | . . 6 Tactical Retreats 1 | . . 1 Traps | -11 -10 -10 ------- Run | Yrd Mat Sub Traps Triggered 2 | . . 2 Indirectly . | . . . Trap Hack Attempts . | . . . Triggered . | . . . Disarmed . | . . . Reprogrammed . | . . . Reused 1 | . . 1 Traps Extracted . | . . . Installed 1 | . . 1 Triggered . | . . . Machines | -11 -10 -10 ---------- Run | Yrd Mat Sub Machines Disabled . | . . . Max in Single Turn . | . . . Machines Repaired . | . . . Machines Dismantled . | . . . Machines Sabotaged . | . . . Overloaded Fab Kills . | . . . Hacking | -11 -10 -10 --------- Run | Yrd Mat Sub Machines Accessed 1 | . . 1 Terminals . | . . . Fabricators . | . . . Repair Stations . | . . . Recycling Units . | . . . Scanalyzers . | . . . Garrison Access . | . . . Total Hacks 5 | . . 5 Successful 5 | . . 5 Failed . | . . . Catastrophic . | . . . Database Lockouts . | . . . Manual . | . . . Terminals . | . . . Fabricators . | . . . Repair Stations . | . . . Recycling Units . | . . . Scanalyzers . | . . . Garrison Access . | . . . Terminal Hacks 5 | . . 5 Record 5 | . . 5 Fabricator Hacks . | . . . Repair Station Hacks . | . . . Recycling Unit Hacks . | . . . Scanalyzer . | . . . Garrison Access Hacks . | . . . Unauthorized Hacks . | . . . Terminals . | . . . Fabricators . | . . . Repair Stations . | . . . Recycling Units . | . . . Scanalyzers . | . . . Garrison Access . | . . . Data Cores Recovered . | . . . Used . | . . . Hacking Detections . | . . . Full Trace Events . | . . . Feedback Events . | . . . Feedback Blocked . | . . . Robot Schematics Acquired . | . . . Robots Built . | . . . Authchips . | . . . Time . | . . . Total Robot Build Rating . | . . . Part Schematics Acquired . | . . . Parts Built . | . . . Authchips . | . . . Time . | . . . Total Part Build Rating . | . . . Parts Repaired . | . . . Time . | . . . Parts Recycled . | . . . Recycled Matter . | . . . Retrieved Matter . | . . . Retrieved Components . | . . . Parts Scanalyzed . | . . . Part Schematics Acquired . | . . . Parts Damaged . | . . . Bothacking | -11 -10 -10 ------------ Run | Yrd Mat Sub Used RIF Installer . | . . . Robots Hacked . | . . . Non-combat . | . . . Combat . | . . . Robot Hacks Applied . | . . . Relay Couplers Released . | . . . Fabnet Peak Effective % . | . . . Robots Rewired . | . . . Allies Hacked . | . . . Hacks Repelled . | . . . Allies | -11 -10 -10 -------- Run | Yrd Mat Sub Total Allies . | . . . Largest Group . | . . . Highest-Rated Group . | . . . Highest-Rated Ally . | . . . Total Orders . | . . . Ally Attacks . | . . . Total Damage . | . . . Kills . | . . . Allies Corrupted . | . . . Allies Melted . | . . . Intel | -11 -10 -10 ------- Run | Yrd Mat Sub Active Infowar (turns) 238 | . . 238 Optics 238 | . . 238 Robot Analysis Total . | . . . Derelict Logs Recovered 2 | . . 2 Drone Launches . | . . . Drone Recoveries . | . . . Exploration | -11 -10 -10 ------------- Run | Yrd Mat Sub Turns Passed 1426 | 4 38 1384 Spaces Moved 1167 | 1 43 1123 Core 278 | 1 43 234 Treads 346 | . . 346 Legs 17 | . . 17 Wheels 499 | . . 499 Hover . | . . . Flight 27 | . . 27 Fastest Speed 50 | 50 50 50 Average Speed 109 | 50 50 112 Slowest Speed 250 | 50 50 250 Overloaded Moves . | . . . Propulsion Burnouts . | . . . Robots Hopped . | . . . Potential Cave-ins . | . . . Cave-ins Triggered . | . . . Exploration Rate (%) 28 | 1 14 69 Regions Visited 2 Branch Regions 1 Pre-discovered Areas 1 | . . 1 Known Exits Taken . | . . . Unknown Exits Taken 2 | 1 1 . Scrap Searched 3 | . . 3 Spaces Dug . | . . . Terrain Destroyed 48 | . 6 42 Melee . | . . . Projectile 1 | . . 1 AOE 47 | . 6 41 Terrain Rammed . | . . . Walls Destroyed . | . . . Machines Disabled . | . . . Actions | -11 -10 -10 --------- Run | Yrd Mat Sub Total 1267 | 5 52 1210 Wait 16 | . . 16 Move 1165 | . 42 1123 Hop . | . . . Pick Up 10 | . 1 9 Fast Attach 6 | . . 6 Attach 12 | 2 1 9 Detach 4 | . 1 3 Swap . | . . . Drop 8 | 3 . 5 Fire 45 | . 7 38 Melee . | . . . Ram . | . . . Kick . | . . . Crush . | . . . Escape Stasis . | . . . Rewire . | . . . Trap 1 | . . 1 Miscellaneous . | . . . Route ------- -11/Scrapyard -10/Materials -10/Subcaves (discovered 2 exits: [*Mat] / [*Rec]) History --------- Turn | Location | Event 1 | -11/Scrapyard | Released all parts (6) 5 | -11/Scrapyard | Discovered new exit (range 0) 5 | -11/Scrapyard | Entered Materials 36 | -10/Materials | Discovered new exit (range 11) 43 | -10/Materials | Entered Subcaves 82 | -10/Subcaves | Disturbed a concealed Subdweller 131 | -10/Subcaves | Learned Materials security intel 138 | -10/Subcaves | Shifting Twisted Machinery released Mak. Leg 141 | -10/Subcaves | Shifting Twisted Machinery released Enh. Flamer 222 | -10/Subcaves | Discovered new exit (range 20) 307 | -10/Subcaves | Build established: Mutant 446 | -10/Subcaves | Visited Clippyterm 450 | -10/Subcaves | Learned Factory stockpile data 450 | -10/Subcaves | Learned location of Section 7 (-3) 1059 | -10/Subcaves | A swath of the cavern ceiling suddenly collapsed 1080 | -10/Subcaves | Build established: Scavenger-Mutant 1363 | -10/Subcaves | Discovered new exit (range 14) 1379 | -10/Subcaves | Core integrity fell below 50% 1390 | -10/Subcaves | Core integrity fell below 20% 1427 | -10/Subcaves | Destroyed by S-10 Pest with Light Assault Rifle Last Messages --------------- A swath of the cavern ceiling suddenly collapses. 01084_ 3Q-CRT(u) tweaks Twisted Machinery. 01130_ NA-3QJ(R): "ECOKILL!" 01149_ NA-3QJ(R) destroyed. 01153_ Acquired 42 matter. 01157_ Acquired 25 matter. 01174_ Sub. Beam Cannon shoots sparks and powers down. 01348_ Sub. Power Source shoots sparks and powers down. 01363_ EXIT=FOUND 01380_ Sub. Monowheel destroyed. 01389_ Triggered Shrapnel Trap. 01389_ An expanding cloud of shrapnel blasts out in all directions. 01389_ Broken Sub. Beam Cannon destroyed. 01389_ S-10 Pest destroyed. 01394_ Broken Sub. Power Source destroyed. 01404_ Mak. Leg destroyed. 01418_ S-10 Pest triggered Piercing Trap. 01418_ Spikes shoot up from the floor. 01418_ S-10 Pest suffers critical hit (Impale). 01423_ Disposable Heat Sink destroyed. Map ----- +----------------------------------------------------+ | ##????????????## ###??????????"??????????????? | | ???????????????## #??????????????????????????? | | ????????????????## ####????????????????????????? | | ????????????????# ## #????##"?"???????????????? | | ????????????????## #????# "" ???????????????? | | ????????????????# ##???#""" ???????????????? | | ????????????????## ## #???#"""#???????????????? | | ???????????????## ## ###### ""#???????????????? | | ???????????????# ^ # #"#"""#???????????????? | | ???????????????# ^ """""#???????????????? | | ???????????????# #???????????????? | | ???????????????## ^ ## ###???????????????? | | ????????????????####" ######?????????????????? | | ??????????????????###^ ##??????????????????????? | | ??????????????????# " #???????????????????????? | | ??????????????????#"" ;#???????????????????????? | | ??????????????????#" ##??????????????????????? | | ??????????????????# #??????????????????????? | | ??????????????????# ;;#??????????????????????? | | ??????????????????# ;##?????????????????????? | | ??????????????????# ###???????????????????? | | ?????????????????## % #???????????????????? | | ?????????????????#^ ; #???????????????????? | | ?????????????????## #### #???????????????????? | | ?????????????????#####??# ##??????????????????? | | ??????????????###